Cogmind - Beta 17 @@@ ROGUE MODE // 2026.07.18 @ 18:26:08 Player: Suffixing Result: Destroyed by P1-3CE with P1-3CE's Gatling Flakker Performance ------------- Evolutions (1) 500 Regions Visited (6) 1200 Robots Destroyed (39) 195 Value Destroyed (811) 811 Prototype IDs (12) 240 Alien Tech Used (0) 0 Bonus (-21) -21 TOTAL SCORE: 2925 Bonus ------- Friendly Fire -21 Cogmind --------- Core Integrity 0/400 Matter 117/300 Energy 200/200 System Corruption 0% Temperature Cool (0) Movement Treading (320) Ox2 Location -8/Mines Parts ------- > --- POWER (1) -------- Cold Fusion Reactor > --- PROPULSION (2) --- Light Treads Light Treads > --- UTILITY (4) ------ Experimental Heat Sink Huge Storage Unit Experimental Targeting Computer Experimental Core Analyzer > --- WEAPON (2) ------- 8R-AWN's Boregun > --- INVENTORY (25) --- Cooled Ion Engine Light Nuclear Core Light Treads Light Treads Light Treads Advanced Myomer Leg Wheel Large Storage Unit Power Shielding EX Chip 1 EX Chip 1 EX Chip 1 EX Chip 1 EX Chip 1 EX Chip 1 EX Chip 2 AS-neutralizer No. 17b Assault Rifle Heavy Assault Rifle Heavy Assault Rifle Heavy Assault Rifle Improved Assault Rifle Improved Assault Rifle Makeshift Shrapnel Gun Improved Grenade Launcher Peak State ------------ > --- POWER ------------ Cold Fusion Reactor > --- PROPULSION ------- Light Treads Light Treads > --- UTILITY ---------- Huge Storage Unit Experimental Targeting Computer Experimental Core Analyzer System Purifier > --- WEAPON ----------- 8R-AWN's Boregun > --- INVENTORY -------- Cooled Ion Engine Light Nuclear Core Light Treads Light Treads Advanced Myomer Leg Wheel Experimental Heat Sink Large Storage Unit Power Shielding EX Chip 1 EX Chip 1 EX Chip 1 EX Chip 1 EX Chip 1 EX Chip 1 EX Chip 2 AS-neutralizer No. 17b Assault Rifle Heavy Assault Rifle Heavy Assault Rifle Heavy Assault Rifle Improved Assault Rifle Improved Assault Rifle Makeshift Shrapnel Gun Improved Grenade Launcher [Rating: 50] Favorites ----------- Power Cooled Ion Engine Engine Cooled Ion Engine Power Core Light Nuclear Core Reactor Cold Fusion Reactor Propulsion Light Treads Treads Light Treads Leg Aluminum Leg Utility Power Shielding Device Heat Sink Storage Huge Storage Unit Processor Experimental Targeting Computer Protection Power Shielding Weapon Advanced Beam Cannon Energy Gun Medium Laser Energy Cannon Advanced Beam Cannon Ballistic Gun Improved Assault Rifle Launcher Improved Grenade Launcher Build | -11 -10 -10 -9 -9 -9 -8 ------- Run | Yrd Mat Min Mat Min Exi Min Slots Evolved 2 | . . . 2 . . . Power . | . . . . . . . Propulsion . | . . . . . . . Utility 2 | . . . 2 . . . Weapon . | . . . . . . . Parts Attached 40 | 3 5 . 14 3 15 . Power 4 | . . . 3 . 1 . Engine 2 | . . . 2 . . . Core 1 | . . . 1 . . . Reactor 1 | . . . . . 1 . Propulsion 8 | 2 . . 2 . 4 . Treads 7 | 2 . . 2 . 3 . Leg 1 | . . . . . 1 . Wheel . | . . . . . . . Hover . | . . . . . . . Flight . | . . . . . . . Utility 12 | . 2 . 4 1 5 . Device 5 | . 1 . . 1 3 . Storage 3 | . 1 . 2 . . . Processor 2 | . . . . . 2 . Hackware . | . . . . . . . Protection 2 | . . . 2 . . . Artifact . | . . . . . . . Weapon 16 | 1 3 . 5 2 5 . Energy Gun . | . . . . . . . Energy Cannon 7 | . 2 . 4 1 . . Ballistic Gun 8 | 1 1 . 1 . 5 . Ballistic Cannon . | . . . . . . . Launcher 1 | . . . . 1 . . Special Weapon . | . . . . . . . Impact Weapon . | . . . . . . . Slashing Weapon . | . . . . . . . Piercing Weapon . | . . . . . . . Special Melee Weapon . | . . . . . . . Unidentified Prototypes 12 | . . . 3 1 8 . Parts Lost 11 | . . . 4 1 6 . Power 1 | . . . 1 . . . Propulsion 4 | . . . 1 . 3 . Utility 2 | . . . 1 1 . . Weapon 4 | . . . 1 . 3 . Highest Loss Streak 3 | . . . 3 1 3 . To Critical Strikes 6 | . . . . . 6 . Average Backups 18 | 6 6 13 16 23 17 25 Power 2 | 1 1 2 2 2 1 2 Propulsion 4 | 4 1 1 4 7 5 5 Utility 2 | . 1 2 1 2 2 10 Weapon 8 | 1 2 7 8 11 8 8 Tool/Special . | . . . . . . . Unused Backups 41 | . 2 1 8 1 15 14 Power 6 | . . . 1 . 4 1 Propulsion 2 | . . . . . . 2 Utility 21 | . 2 . 2 1 9 7 Weapon 12 | . . 1 5 . 2 4 Tool/Special . | . . . . . . . Average Slot Usage (%) 84 | . 86 100 93 78 80 88 Engine 10 | . 14 14 8 11 8 . Treads 22 | . 28 28 21 22 21 22 Device 5 | . 1 14 11 1 4 11 Storage 11 | . 14 14 11 11 11 11 Processor 2 | . . . . . 5 22 Protection 9 | . . . 15 11 9 . Energy Cannon 13 | . 2 28 15 22 4 . Ballistic Gun 6 | . 23 . 6 . 9 11 Launcher 1 | . . . . . 3 . Peak Build Rating 50 | 6 8 9 18 31 50 47 Average Rating 18 | 6 6 8 15 17 24 47 On Entrance 16 | 6 6 8 9 18 19 47 Avg Prop Armor Cover (%) . | . . . . . . . Naked Turns . | . . . . . . . Heaviest Build 100 | 12 30 30 100 99 99 98 Greatest Support 40 | 40 40 40 40 40 40 40 Greatest Overweight (x) 2 | . . . 2 2 2 2 Average Overweight (x) . | . . . . 2 . 2 Largest Inventory Capacity 25 | 8 15 15 25 25 25 25 Average Capacity 21 | 8 14 15 20 25 20 25 Most Carried 25 | 6 12 15 22 25 25 25 Average Carried 18 | 4 6 13 16 23 17 25 Final Capacity 25 | 8 15 15 25 25 25 25 Final Carried 25 | 2 11 14 22 25 25 25 Class Distribution -------------------- 87% | Mutant 12% | Scavenger-Mutant Dominant Class ---------------- Mutant | -10/Materials Mutant | -10/Mines Mutant | -9/Materials Mutant | -9/Mines Mutant | -9/Exiles Scavenger-Mutant | -8/Mines Resources | -11 -10 -10 -9 -9 -9 -8 ----------- Run | Yrd Mat Min Mat Min Exi Min Matter Collected 1252 | 187 149 72 181 43 620 . Remotely . | . . . . . . . Salvage Created 1440 | . 219 38 528 258 397 . Parts 125 | . 9 5 32 12 67 . Haulers Intercepted 3 | . . . 3 . . . Recyclers Shooed 1 | . . . . 1 . . Parts Field Recycled . | . . . . . . . Retrieved Matter . | . . . . . . . Parts Self-Destructed . | . . . . . . . Prevented . | . . . . . . . Parts Restored . | . . . . . . . Kills | -11 -10 -10 -9 -9 -9 -8 ------- Run | Yrd Mat Min Mat Min Exi Min Combat Hostiles Destroyed 32 | . 5 3 10 8 6 . Guns 10 | . 5 . 3 . 2 . Cannons 13 | . . 3 6 4 . . AOE 7 | . . . . 3 4 . Classes Destroyed 10 | . 1 1 3 2 3 . Tunneler 1 | . . . . 1 . . Hauler 3 | . . . 3 . . . Turret 1 | . . . . . 1 . Swarmer 9 | . . 3 3 3 . . Grunt 12 | . 5 . 4 3 . . Brawler 1 | . . . . 1 . . Duelist 2 | . . . 1 1 . . Sentry 2 | . . . 2 . . . Zionite 5 | . . . . . 5 . Assembled 5 | . . . . . 5 . Best Kill Streak 5 | . 2 3 4 4 5 . Combat Bots Only 5 | . 2 3 3 3 5 . Max Kills in Single Turn 4 | . 1 2 1 4 2 . Gunslinging . | . . . . . . . Exploded 3 | . . . . 3 2 . Melee . | . . . . . . . Uniques/NPCs Destroyed 4 | . . . . . 4 . 8R-AWN (-9/Exiles) EX-BIN (-9/Exiles) EX-HEX (-9/Exiles) EX-DEC (-9/Exiles) Combat | -11 -10 -10 -9 -9 -9 -8 -------- Run | Yrd Mat Min Mat Min Exi Min Hostile Shots Fired 224 | . 49 2 52 22 93 6 Missed 58 | . 16 . 14 10 15 3 Hits 166 | . 33 2 38 12 78 3 Melee 3 | . . . 3 . . . Projectile 163 | . 33 2 35 12 78 3 Critical Strikes 45 | . 2 . 1 . 42 . Actively Blocked 6 | . . . . . 6 . Damage Taken 2484 | . 409 16 504 171 1339 45 Core 534 | . 109 10 60 34 298 23 Absorbed by Shields . | . . . . . . . Redirected to Shielding 34 | . . . . . 34 . Core Remaining (%) 76 | 100 . 52 . . . . Volleys Fired 163 | . 32 2 33 14 82 . Largest 2 | . 2 2 2 2 2 . Hottest 136 | . 40 120 136 136 53 . Shots Fired 282 | . 64 4 64 27 123 . Gun 193 | . 64 . 12 . 117 . Cannon 82 | . . 4 52 26 . . Launcher 7 | . . . . 1 6 . Special . | . . . . . . . Kinetic 193 | . 64 . 12 . 117 . Thermal 82 | . . 4 52 26 . . Explosive 7 | . . . . 1 6 . Electromagnetic . | . . . . . . . Robot Hit Streak 53 | . 7 2 17 15 53 . Robot Miss Streak 4 | . 4 1 3 3 3 . Penetration Max 1 | . . . . . 1 . Secondary Targets 1 | . 1 . . . . . Max Gunslinging Chain 1 | . 1 . . . . . Shots Hit Robots 205 | . 41 2 46 19 97 . Core Hits 77 | . 15 3 14 9 36 . Critical Kills 7 | . . . 2 . 5 . Critical Parts Destroyed 6 | . . . . . 6 . Critical Strikes 13 | . . . 2 . 11 . Meltdown 2 | . . . 2 . . . Destroy 11 | . . . . . 11 . Melee Attacks . | . . . . . . . Impact . | . . . . . . . Slashing . | . . . . . . . Piercing . | . . . . . . . Sneak Attacks . | . . . . . . . Combat Hostiles . | . . . . . . . Follow-up Attacks . | . . . . . . . Damage Inflicted 4144 | . 448 64 895 618 2119 . Guns 2295 | . 444 . 112 . 1739 . Cannons 1242 | . . 51 783 408 . . Explosions 560 | . . . . 180 380 . Melee . | . . . . . . . Ramming 47 | . 4 13 . 30 . . Kinetic 2295 | . 444 . 112 . 1739 . Thermal 1242 | . . 51 783 408 . . Explosive 560 | . . . . 180 380 . Electromagnetic . | . . . . . . . Impact . | . . . . . . . Slashing . | . . . . . . . Piercing . | . . . . . . . Highest Corruption . | . . . . . . . Average Corruption . | . . . . . . . Corruption Purged . | . . . . . . . Corruption Blocked . | . . . . . . . Overload Shots . | . . . . . . . Overflow Damage 23 | . . . . . 23 . Projectiles . | . . . . . . . Explosions 23 | . . . . . 23 . Melee . | . . . . . . . Knockbacks . | . . . . . . . Impact . | . . . . . . . Kinetic . | . . . . . . . Secondary . | . . . . . . . Self-Inflicted Damage . | . . . . . . . Shots . | . . . . . . . Rammed 7 | . 1 2 . 4 . . Targets Rammed 7 | . 1 2 . 4 . . Kicked . | . . . . . . . Crushed . | . . . . . . . Highest Temperature 390 | . 28 60 198 390 4 . Average Temperature 61 | . 9 30 56 153 1 . Received Heat Transfer 462 | . 252 . 144 66 . . Siege Activations . | . . . . . . . Martial Activations . | . . . . . . . Shielding Activations . | . . . . . . . Robots Disrupted . | . . . . . . . Combat Hostiles . | . . . . . . . Robots Corrupted . | . . . . . . . Combat Hostiles . | . . . . . . . Parts Fried . | . . . . . . . Impact Corruptions . | . . . . . . . Robots Melted 3 | . . . 2 1 . . Combat Hostiles 2 | . . . 1 1 . . Parts Melted 10 | . . 1 6 3 . . Heat Transferred 2331 | . . 111 1480 740 . . Parts Sabotaged . | . . . . . . . Parts Stolen . | . . . . . . . Parts Stripped . | . . . . . . . Power Chain Reactions . | . . . . . . . Alert | -11 -10 -10 -9 -9 -9 -8 ------- Run | Yrd Mat Min Mat Min Exi Min Maximum Alert Level . | . . . . . . . Low Security (%) 100 | 100 100 100 100 100 . 100 Level 1 . | . . . . . . . Level 2 . | . . . . . . . Level 3 . | . . . . . . . Level 4 . | . . . . . . . Level 5 . | . . . . . . . High Security . | . . . . . . . Max Security . | . . . . . . . Peak Influence 87 | . 42 70 74 87 . . Initial 22 | . . . . 22 . . Average 12 | . 10 10 13 12 . . Influence Increases 708 | . 128 70 303 207 . . Destroy 0b10 Robot/C 520 | . 100 60 200 160 . . Destroy 0b10 Robot/NC 20 | . . . 15 5 . . Destroy Leader 116 | . 20 10 56 30 . . Successful Hack 8 | . 8 . . . . . Destroy Structure 14 | . . . 2 12 . . Lose Combat Pursuer 30 | . . . 30 . . . Influence Decreases 708 | . 128 70 244 266 . . Entered New Map 37 | . . . . 37 . . Time Decay 631 | . 128 70 214 219 . . Lost Part 40 | . . . 30 10 . . Squads Dispatched 3 | . . 1 2 . . . Investigation 2 | . . 1 1 . . . Extermination . | . . . . . . . Reinforcement 1 | . . . 1 . . . Assault . | . . . . . . . Garrison . | . . . . . . . Intercept . | . . . . . . . Searches Triggered . | . . . . . . . Construction Impeded . | . . . . . . . Haulers Reinforced . | . . . . . . . Active Scanning Responses . | . . . . . . . Cargo Convoy Interrupts . | . . . . . . . Stealth | -11 -10 -10 -9 -9 -9 -8 --------- Run | Yrd Mat Min Mat Min Exi Min Distress Signals 9 | . 2 . 7 . . . Communications Jammed . | . . . . . . . Distress Signals . | . . . . . . . Times Spotted 79 | . 14 3 25 8 28 1 Peak Tracking Total 9 | . 4 2 5 3 9 1 Tactical Retreats 16 | . . . 2 . 14 . Traps | -11 -10 -10 -9 -9 -9 -8 ------- Run | Yrd Mat Min Mat Min Exi Min Traps Triggered 1 | . . . . 1 . . Indirectly . | . . . . . . . Trap Hack Attempts . | . . . . . . . Triggered . | . . . . . . . Disarmed . | . . . . . . . Reprogrammed . | . . . . . . . Reused . | . . . . . . . Traps Extracted . | . . . . . . . Installed . | . . . . . . . Triggered . | . . . . . . . Machines | -11 -10 -10 -9 -9 -9 -8 ---------- Run | Yrd Mat Min Mat Min Exi Min Machines Disabled 13 | . . . . . 13 . Max in Single Turn 2 | . . . . . 2 . Machines Repaired . | . . . . . . . Machines Dismantled . | . . . . . . . Machines Sabotaged . | . . . . . . . Overloaded Fab Kills . | . . . . . . . Hacking | -11 -10 -10 -9 -9 -9 -8 --------- Run | Yrd Mat Min Mat Min Exi Min Machines Accessed 7 | . 2 1 2 2 . . Terminals 3 | . 2 . 1 . . . Fabricators . | . . . . . . . Repair Stations . | . . . . . . . Recycling Units . | . . . . . . . Scanalyzers 1 | . . . 1 . . . Garrison Access . | . . . . . . . Total Hacks 10 | . 2 1 5 2 . . Successful 9 | . 2 1 4 2 . . Failed 1 | . . . 1 . . . Catastrophic 1 | . . . 1 . . . Database Lockouts . | . . . . . . . Manual 4 | . 2 . 2 . . . Terminals 4 | . 2 . 2 . . . Fabricators . | . . . . . . . Repair Stations . | . . . . . . . Recycling Units . | . . . . . . . Scanalyzers 3 | . . . 3 . . . Garrison Access . | . . . . . . . Terminal Hacks 4 | . . 1 1 2 . . Open Door 3 | . . 1 . 2 . . Branch Access Points 1 | . . . 1 . . . Fabricator Hacks . | . . . . . . . Repair Station Hacks . | . . . . . . . Recycling Unit Hacks . | . . . . . . . Scanalyzer 3 | . . . 3 . . . Retrieve Study 3 | . . . 3 . . . Garrison Access Hacks . | . . . . . . . Unauthorized Hacks 2 | . 2 . . . . . Terminals 2 | . 2 . . . . . Skim 2 | . 2 . . . . . Fabricators . | . . . . . . . Repair Stations . | . . . . . . . Recycling Units . | . . . . . . . Scanalyzers . | . . . . . . . Garrison Access . | . . . . . . . Data Cores Recovered . | . . . . . . . Used . | . . . . . . . Hacking Detections . | . . . . . . . Full Trace Events . | . . . . . . . Feedback Events . | . . . . . . . Feedback Blocked . | . . . . . . . Robot Schematics Acquired . | . . . . . . . Robots Built . | . . . . . . . Authchips . | . . . . . . . Time . | . . . . . . . Total Robot Build Rating . | . . . . . . . Part Schematics Acquired . | . . . . . . . Parts Built . | . . . . . . . Authchips . | . . . . . . . Time . | . . . . . . . Total Part Build Rating . | . . . . . . . Part Studies Acquired 3 | . . . 3 . . . Parts Repaired . | . . . . . . . Time . | . . . . . . . Parts Recycled . | . . . . . . . Recycled Matter . | . . . . . . . Retrieved Matter . | . . . . . . . Retrieved Components . | . . . . . . . Parts Scanalyzed . | . . . . . . . Part Schematics Acquired . | . . . . . . . Parts Damaged . | . . . . . . . Bothacking | -11 -10 -10 -9 -9 -9 -8 ------------ Run | Yrd Mat Min Mat Min Exi Min Used RIF Installer . | . . . . . . . Robots Hacked . | . . . . . . . Non-combat . | . . . . . . . Combat . | . . . . . . . Robot Hacks Applied . | . . . . . . . Relay Couplers Released . | . . . . . . . Fabnet Peak Effective % . | . . . . . . . Robots Rewired . | . . . . . . . Allies Hacked . | . . . . . . . Hacks Repelled . | . . . . . . . Allies | -11 -10 -10 -9 -9 -9 -8 -------- Run | Yrd Mat Min Mat Min Exi Min Total Allies 1 | . . 1 . . . . Largest Group 1 | . . 1 1 . . . Highest-Rated Group 31 | . . 31 31 . . . Highest-Rated Ally 31 | . . 31 31 . . . Total Orders . | . . . . . . . Ally Attacks 8 | . . . 8 . . . Total Damage 62 | . . . 62 . . . Kills . | . . . . . . . Allies Corrupted . | . . . . . . . Allies Melted . | . . . . . . . Intel | -11 -10 -10 -9 -9 -9 -8 ------- Run | Yrd Mat Min Mat Min Exi Min Active Infowar (turns) . | . . . . . . . Robot Analysis Total . | . . . . . . . Derelict Logs Recovered 4 | . . 1 . 3 . . Drone Launches . | . . . . . . . Drone Recoveries . | . . . . . . . Exploration | -11 -10 -10 -9 -9 -9 -8 ------------- Run | Yrd Mat Min Mat Min Exi Min Turns Passed 7005 | 9 543 496 1606 2170 2100 81 Spaces Moved 2619 | 2 267 301 591 658 774 26 Core . | . . . . . . . Treads 2619 | 2 267 301 591 658 774 26 Legs . | . . . . . . . Wheels . | . . . . . . . Hover . | . . . . . . . Flight . | . . . . . . . Fastest Speed 160 | 160 160 160 160 320 160 320 Average Speed 236 | 160 160 160 222 320 230 320 Slowest Speed 320 | 160 160 160 320 320 320 320 Overloaded Moves . | . . . . . . . Propulsion Burnouts . | . . . . . . . Robots Hopped . | . . . . . . . Potential Cave-ins . | . . . . . . . Cave-ins Triggered . | . . . . . . . Exploration Rate (%) 49 | 2 47 74 51 90 73 7 Regions Visited 6 Branch Regions 4 Pre-discovered Areas 3 | . . . . 3 . . Known Exits Taken 1 | . . . 1 . . . Unknown Exits Taken 5 | 1 1 1 . 1 1 . Scrap Searched 3 | . . 1 . 2 . . Spaces Dug . | . . . . . . . Terrain Destroyed 56 | . . . . 16 40 . Melee . | . . . . . . . Projectile 4 | . . . . . 4 . AOE 52 | . . . . 16 36 . Terrain Rammed . | . . . . . . . Walls Destroyed . | . . . . . . . Machines Disabled . | . . . . . . . Actions | -11 -10 -10 -9 -9 -9 -8 --------- Run | Yrd Mat Min Mat Min Exi Min Total 3169 | 8 323 311 832 688 981 26 Wait 192 | . 7 2 143 3 37 . Move 2613 | 1 266 300 590 657 773 26 Hop . | . . . . . . . Pick Up 85 | . 11 4 29 5 36 . Fast Attach 4 | . . . 4 . . . Attach 20 | . 1 . 5 1 13 . Detach 4 | . . . 1 . 3 . Swap 23 | 3 4 . 6 2 8 . Drop 58 | 4 1 1 21 2 29 . Fire 163 | . 32 2 33 14 82 . Melee . | . . . . . . . Ram . | . . . . . . . Kick . | . . . . . . . Crush 7 | . 1 2 . 4 . . Escape Stasis . | . . . . . . . Rewire . | . . . . . . . Trap . | . . . . . . . Miscellaneous . | . . . . . . . Route ------- -11/Scrapyard -10/Materials -10/Mines (discovered 2 exits: *Mat x2) -9/Materials (discovered 2 exits: *Min x2) -9/Mines (discovered 2 exits: [*Mat] / [*Exi]) -9/Exiles -8/Mines History --------- Turn | Location | Event 8 | -11/Scrapyard | Discovered new exit (range 1) 10 | -11/Scrapyard | Entered Materials 209 | -10/Materials | Discovered new exit (range 16) 301 | -10/Materials | Build established: Mutant 553 | -10/Materials | Entered Mines 606 | -10/Mines | Met a Derelict shopkeep closing up shop 720 | -10/Mines | Discovered new exit (range 7) 741 | -10/Mines | Learned Materials trap positions 839 | -10/Mines | YI-UF0 nonchalantly dropped a Grenade Launcher on the ground 993 | -10/Mines | A weapon hastily lodged in a ceiling crevice suddenly fell to the ground 1028 | -10/Mines | Discovered new exit (range 5) 1036 | -10/Mines | Received a Mining Laser from a helpful Derelict 1049 | -10/Mines | Entered Materials 1049 | -9/Materials | Accompanied by 1 ally 1049 | -9/Materials | Evolved 2 slots: Utility x2 1050 | -9/Materials | Loaded intel: 8 trap records 2000 | -9/Materials | Identified exit to Mines 2571 | -9/Materials | Lost 3 parts (1n1u1w) 2655 | -9/Materials | Entered Mines 2677 | -9/Mines | Met a Derelict bent on vengeance 2715 | -9/Mines | Learned location of Storage (-8) 3453 | -9/Mines | Found a hidden stash of uninstalled traps 3501 | -9/Mines | Discovered new exit (range 8) 3543 | -9/Mines | Met a Derelict who couldn't figure out how to use a Trap Extractor 4001 | -9/Mines | Found the Drone Emporium 4017 | -9/Mines | Found Prototype Device 4018 | -9/Mines | Identified Bomb Drone Bay 4513 | -9/Mines | Found a damaged Exp. Sensor Array with a note attached 4616 | -9/Mines | Found Prototype Device 4786 | -9/Mines | Learned location of Zion (-7) 4809 | -9/Mines | Deemed a non-threat by the Exiles lab entrance 4812 | -9/Mines | Discovered new exit (range 5) 4825 | -9/Mines | Entered Exiles 4912 | -9/Exiles | Met 8R-AWN 4957 | -9/Exiles | Met EX-HEX 5091 | -9/Exiles | Met EX-DEC 5921 | -9/Exiles | Attacked by the Exiles 6032 | -9/Exiles | Core integrity fell below 50% 6069 | -9/Exiles | Core integrity fell below 20% 6099 | -9/Exiles | Lost 3 parts (1n2w) 6129 | -9/Exiles | Destroyed 8R-AWN 6142 | -9/Exiles | Found Prototype Ballistic Gun 6143 | -9/Exiles | Identified 8R-AWN's Boregun 6148 | -9/Exiles | Found Prototype Device 6149 | -9/Exiles | Identified AS-neutralizer No. 17b 6156 | -9/Exiles | Found Prototype Processor 6157 | -9/Exiles | Identified Exp. Targeting Computer 6443 | -9/Exiles | Build established: Scavenger-Mutant 6443 | -9/Exiles | Destroyed EX-BIN 6451 | -9/Exiles | Destroyed EX-HEX 6475 | -9/Exiles | Destroyed EX-DEC 6554 | -9/Exiles | Found Prototype Processor 6555 | -9/Exiles | Identified Exp. Core Analyzer 6651 | -9/Exiles | Found Prototype Device 6652 | -9/Exiles | Identified System Purifier 6899 | -9/Exiles | Discovered new exit (range 10) 6925 | -9/Exiles | Entered Mines 7003 | -8/Mines | P1-3CE came to Exiles' defense 7006 | -8/Mines | Destroyed by P1-3CE with P1-3CE's Gatling Flakker Last Messages --------------- 06560_ Acquired EX Chip 1. 06568_ Acquired EX Chip 2. 06577_ Acquired EX Chip 1. 06584_ Acquired EX Chip 2. 06592_ Acquired 30 matter. 06602_ Acquired EX Chip 2. 06609_ Dropped EX Chip 2. 06621_ Acquired EX Chip 1. 06651_ Dropped EX Chip 1. 06651_ Acquired Prototype Device. 06652_ Identified System Purifier. 06654_ Discarded System Purifier. 06796_ Acquired 3 matter. 06853_ Acquired Lgt. Treads. 06899_ EXIT=FOUND A strange signal echoes through the mines. LOCATION=UNKNOWN GOAL=ESCAPE 07003_ P1-3CE: "I came as fast as I could... Wait, it was you!" Map ----- +----------------------------------------------------+ | | | ????????????????????????????????????? | | ????????????????????????????????????? | | ????????????????????????????????????? | | ????????????????????????????????????? | | ????????????????????????????????????? | | ????????????????????????????????????? | | ????????????????????????????????????? | | ??????????###???????????????????????? | | ????????## ##??????????????????????? | | ????##### ##?????????????????????? | | ???## ##????????????????????? | | ??## ##???????????????????? | | ?## #???????????????????? | | ?# #???????????????????? | | ?# """ #????????????????????? | | ??# ### """ ##???????????????????? | | ??# #?## """ #???????????????????? | | ??# ##?## #???????????????????? | | ??##??## ##???????????????????? | | ??????# ####????????????????????? | | ??????# ##???????????????????????? | | ??????## #????????????????????????? | | ???????#; ########?????????????????? | | ????????# #?????????????????? | | ????????# @ M #?????????????????? | | ????????######## #?????????????????? | | ??????????????????#?????????????????? | | ????????????????????????????????????? | | ????????????????????????????????????? | | ????????????????????????????????????? | | ????????????????????????????????????? | | ????????????????????????????????????? | | ????????????????????????????????????? | | ????????????????????????????????????? | | ????????????????????????????????????? | | ????????????????????????????????????? | | ????????????????????????????????????? | | ????????????????????????????????????? | | ????????????????????????????????????? | | ????????????????????????????????????? | | ????????????????????????????????????? | | ????????????????????????????????????? | | ????????????????????????????????????? | | ????????????????????????????????????? | | ????????????????????????????????????? | | ????????????????????????????????????? | | ????????????????????????????????????? | | ????????????????????????????????????? | | ????????????????????????????????????? | +----------------------------------------------------+ Best States ------------- Heat Dissipation 54 Energy Generation 17 Energy Capacity 280 Matter Stores 300 Matter Capacity 300 Sight Range 16 Terrain Scan Density 10 Armor Coverage 150 Power Shielding 33 Evasion (%) 40 Targeting Accuracy 12 Core Analysis 8 Recoil Reduction 2 Item Schematics ----------------- None Robot Schematics ------------------ None Fabricated ------------ Nothing Repaired ---------- Nothing Studied --------- Lgt. Ion Engine | -9/Materials | Hacked Hvy. Assault Rifle | -9/Materials | Hacked Assault Rifle | -9/Materials | Hacked Alien Tech Used ----------------- None Achievements -------------- Who Guards The Bodyguard? Challenges ------------ None Game ------ Seed HeatCoolantDatajack Manual? 0 Play Time 00:27:08 Cumulative 57.4 hours Start 2026.07.18 @ 17:56:18 End 2026.07.18 @ 18:26:08 Sessions 1 Manual Loads 0 Difficulty Rogue Special Mode None Game No. 245 Rogue 200 Adventurer 45 Explorer 0 Win Type - Total 1 Types 1/0/0/0/0/0/0/0/0/0 Lore% 63 Gallery% 43 Achievement% 40 Wizard Run 0 Options --------- Layout 1 ASCII 0 Keyboard 0 Movement Numpad Keybinds 0 Fullscreen 1 Font 24/Smallcaps Map View 50x35 Zoom Use 0% Tactical HUD 1 Map Filters NONE Filters NONE Steam 1 RUN: e37fa064-710a-4c3d-8298-55e0659e4dc2